Workbook

Sheet Proračun za vjenčanje
B2: IVANA + DANIJEL RECITE SUDBONOSNO „DA”
B5: KATEGORIJA | C5: PROCIJENJENI TROŠAK | D5: STVARNI TROŠAK | E5: ODSTUPANJE | F5: % PRORAČUNA | J5: Nesortirano | K5: Procijenjeni troškovi | L5: Stvarni troškovi | M5: Procijenjeni troškovi – Vrijednost ranga | N5: Rang | O5: # | P5: Sortirano
B6: =P6 -> Prijem | C6: =VLOOKUP(TBL_Summary[[#This Row],[KATEGORIJA]],TBL_RankingData,2,FALSE) -> 14,500 kn | D6: =IF(VLOOKUP(TBL_Summary[[#This Row],[KATEGORIJA]],TBL_RankingData,3,FALSE)=0,"",VLOOKUP(TBL_Summary[[#This Row],[KATEGORIJA]],TBL_RankingData,3,FALSE)) -> 12,800 kn | E6: =IF(OR(TBL_Summary[[#This Row],[PROCIJENJENI TROŠAK]]="",TBL_Summary[[#This Row],[STVARNI TROŠAK]]=""),"",TBL_Summary[[#This Row],[PROCIJENJENI TROŠAK]]-TBL_Summary[[#This Row],[STVARNI TROŠAK]]) -> 1,700 kn | F6: =TBL_Summary[[#This Row],[PROCIJENJENI TROŠAK]]/SUM(TBL_Summary[PROCIJENJENI TROŠAK]) -> 48.7% | J6: Prijem | K6: =TBL_Reception[[#Totals],[PROCIJENJENO]] -> 14500 | L6: =TBL_Reception[[#Totals],[STVARNO]] -> 12800 | M6: =K6-O6/100 -> 14499.99 | N6: =_xlfn.RANK.AVG(M6,$M$6:$M$15) -> 1 | O6: 1 | P6: =INDEX(TBL_RankingData,MATCH(O6,$N$6:$N$15,0),1) -> Prijem
B7: =P7 -> Odjeća | C7: =VLOOKUP(TBL_Summary[[#This Row],[KATEGORIJA]],TBL_RankingData,2,FALSE) -> 4,000 kn | D7: =IF(VLOOKUP(TBL_Summary[[#This Row],[KATEGORIJA]],TBL_RankingData,3,FALSE)=0,"",VLOOKUP(TBL_Summary[[#This Row],[KATEGORIJA]],TBL_RankingData,3,FALSE)) -> 2,900 kn | E7: =IF(OR(TBL_Summary[[#This Row],[PROCIJENJENI TROŠAK]]="",TBL_Summary[[#This Row],[STVARNI TROŠAK]]=""),"",TBL_Summary[[#This Row],[PROCIJENJENI TROŠAK]]-TBL_Summary[[#This Row],[STVARNI TROŠAK]]) -> 1,100 kn | F7: =TBL_Summary[[#This Row],[PROCIJENJENI TROŠAK]]/SUM(TBL_Summary[PROCIJENJENI TROŠAK]) -> 13.4% | J7: Odjeća | K7: =TBL_Attire[[#Totals],[PROCIJENJENO]] -> 4000 | L7: =TBL_Attire[[#Totals],[STVARNO]] -> 2900 | M7: =K7-O7/100 -> 3999.98 | N7: 2 | O7: 2 | P7: Odjeća
B8: Cvijeće i ukrasi | C8: =VLOOKUP(TBL_Summary[[#This Row],[KATEGORIJA]],TBL_RankingData,2,FALSE) -> 3,000 kn | D8: =IF(VLOOKUP(TBL_Summary[[#This Row],[KATEGORIJA]],TBL_RankingData,3,FALSE)=0,"",VLOOKUP(TBL_Summary[[#This Row],[KATEGORIJA]],TBL_RankingData,3,FALSE)) ->  | E8: =IF(OR(TBL_Summary[[#This Row],[PROCIJENJENI TROŠAK]]="",TBL_Summary[[#This Row],[STVARNI TROŠAK]]=""),"",TBL_Summary[[#This Row],[PROCIJENJENI TROŠAK]]-TBL_Summary[[#This Row],[STVARNI TROŠAK]]) ->  | F8: =TBL_Summary[[#This Row],[PROCIJENJENI TROŠAK]]/SUM(TBL_Summary[PROCIJENJENI TROŠAK]) -> 10.1% | J8: Cvijeće i ukrasi | K8: =TBL_FlowersAndDecor[[#Totals],[PROCIJENJENO]] -> 3000 | L8: =TBL_FlowersAndDecor[[#Totals],[STVARNO]] -> 0 | M8: 2999.97 | N8: 3 | O8: 3 | P8: Cvijeće i ukrasi
B9: Fotografije i videozapisi | C9: =VLOOKUP(TBL_Summary[[#This Row],[KATEGORIJA]],TBL_RankingData,2,FALSE) -> 2,500 kn | D9: =IF(VLOOKUP(TBL_Summary[[#This Row],[KATEGORIJA]],TBL_RankingData,3,FALSE)=0,"",VLOOKUP(TBL_Summary[[#This Row],[KATEGORIJA]],TBL_RankingData,3,FALSE)) ->  | E9: =IF(OR(TBL_Summary[[#This Row],[PROCIJENJENI TROŠAK]]="",TBL_Summary[[#This Row],[STVARNI TROŠAK]]=""),"",TBL_Summary[[#This Row],[PROCIJENJENI TROŠAK]]-TBL_Summary[[#This Row],[STVARNI TROŠAK]]) ->  | F9: =TBL_Summary[[#This Row],[PROCIJENJENI TROŠAK]]/SUM(TBL_Summary[PROCIJENJENI TROŠAK]) -> 8.4% | J9: Glazba | K9: =TBL_Music[[#Totals],[PROCIJENJENO]] -> 1800 | L9: =TBL_Music[[#Totals],[STVARNO]] -> 0 | M9: 1799.96 | N9: 5 | O9: 4 | P9: Fotografije i videozapisi
B10: Glazba | C10: =VLOOKUP(TBL_Summary[[#This Row],[KATEGORIJA]],TBL_RankingData,2,FALSE) -> 1,800 kn | D10: =IF(VLOOKUP(TBL_Summary[[#This Row],[KATEGORIJA]],TBL_RankingData,3,FALSE)=0,"",VLOOKUP(TBL_Summary[[#This Row],[KATEGORIJA]],TBL_RankingData,3,FALSE)) ->  | E10: =IF(OR(TBL_Summary[[#This Row],[PROCIJENJENI TROŠAK]]="",TBL_Summary[[#This Row],[STVARNI TROŠAK]]=""),"",TBL_Summary[[#This Row],[PROCIJENJENI TROŠAK]]-TBL_Summary[[#This Row],[STVARNI TROŠAK]]) ->  | F10: =TBL_Summary[[#This Row],[PROCIJENJENI TROŠAK]]/SUM(TBL_Summary[PROCIJENJENI TROŠAK]) -> 6.1% | J10: Fotografije i videozapisi | K10: =TBL_PhotographsAndVideo[[#Totals],[PROCIJENJENO]] -> 2500 | L10: =TBL_PhotographsAndVideo[[#Totals],[STVARNO]] -> 0 | M10: 2499.95 | N10: 4 | O10: 5 | P10: Glazba
B11: Usluge i darovi | C11: =VLOOKUP(TBL_Summary[[#This Row],[KATEGORIJA]],TBL_RankingData,2,FALSE) -> 1,100 kn | D11: =IF(VLOOKUP(TBL_Summary[[#This Row],[KATEGORIJA]],TBL_RankingData,3,FALSE)=0,"",VLOOKUP(TBL_Summary[[#This Row],[KATEGORIJA]],TBL_RankingData,3,FALSE)) ->  | E11: =IF(OR(TBL_Summary[[#This Row],[PROCIJENJENI TROŠAK]]="",TBL_Summary[[#This Row],[STVARNI TROŠAK]]=""),"",TBL_Summary[[#This Row],[PROCIJENJENI TROŠAK]]-TBL_Summary[[#This Row],[STVARNI TROŠAK]]) ->  | F11: =TBL_Summary[[#This Row],[PROCIJENJENI TROŠAK]]/SUM(TBL_Summary[PROCIJENJENI TROŠAK]) -> 3.7% | J11: Usluge i darovi | K11: =TBL_FavorsAndGifts[[#Totals],[PROCIJENJENO]] -> 1100 | L11: =TBL_FavorsAndGifts[[#Totals],[STVARNO]] -> 0 | M11: 1099.94 | N11: 6 | O11: 6 | P11: Usluge i darovi
B12: =P12 -> Vjenčano prstenje | C12: =VLOOKUP(TBL_Summary[[#This Row],[KATEGORIJA]],TBL_RankingData,2,FALSE) -> 1,100 kn | D12: =IF(VLOOKUP(TBL_Summary[[#This Row],[KATEGORIJA]],TBL_RankingData,3,FALSE)=0,"",VLOOKUP(TBL_Summary[[#This Row],[KATEGORIJA]],TBL_RankingData,3,FALSE)) ->  | E12: =IF(OR(TBL_Summary[[#This Row],[PROCIJENJENI TROŠAK]]="",TBL_Summary[[#This Row],[STVARNI TROŠAK]]=""),"",TBL_Summary[[#This Row],[PROCIJENJENI TROŠAK]]-TBL_Summary[[#This Row],[STVARNI TROŠAK]]) ->  | F12: =TBL_Summary[[#This Row],[PROCIJENJENI TROŠAK]]/SUM(TBL_Summary[PROCIJENJENI TROŠAK]) -> 3.7% | J12: Obred | K12: =TBL_Ceremony[[#Totals],[PROCIJENJENO]] -> 800 | L12: =TBL_Ceremony[[#Totals],[STVARNO]] -> 0 | M12: 799.93 | N12: 8 | O12: 7 | P12: Vjenčano prstenje
B13: Obred | C13: =VLOOKUP(TBL_Summary[[#This Row],[KATEGORIJA]],TBL_RankingData,2,FALSE) -> 800 kn | D13: =IF(VLOOKUP(TBL_Summary[[#This Row],[KATEGORIJA]],TBL_RankingData,3,FALSE)=0,"",VLOOKUP(TBL_Summary[[#This Row],[KATEGORIJA]],TBL_RankingData,3,FALSE)) ->  | E13: =IF(OR(TBL_Summary[[#This Row],[PROCIJENJENI TROŠAK]]="",TBL_Summary[[#This Row],[STVARNI TROŠAK]]=""),"",TBL_Summary[[#This Row],[PROCIJENJENI TROŠAK]]-TBL_Summary[[#This Row],[STVARNI TROŠAK]]) ->  | F13: =TBL_Summary[[#This Row],[PROCIJENJENI TROŠAK]]/SUM(TBL_Summary[PROCIJENJENI TROŠAK]) -> 2.7% | J13: Tiskanice | K13: =TBL_Stationery[[#Totals],[PROCIJENJENO]] -> 500 | L13: =TBL_Stationery[[#Totals],[STVARNO]] -> 0 | M13: 499.92 | N13: 9 | O13: 8 | P13: Obred
B14: Tiskanice | C14: =VLOOKUP(TBL_Summary[[#This Row],[KATEGORIJA]],TBL_RankingData,2,FALSE) -> 500 kn | D14: =IF(VLOOKUP(TBL_Summary[[#This Row],[KATEGORIJA]],TBL_RankingData,3,FALSE)=0,"",VLOOKUP(TBL_Summary[[#This Row],[KATEGORIJA]],TBL_RankingData,3,FALSE)) ->  | E14: =IF(OR(TBL_Summary[[#This Row],[PROCIJENJENI TROŠAK]]="",TBL_Summary[[#This Row],[STVARNI TROŠAK]]=""),"",TBL_Summary[[#This Row],[PROCIJENJENI TROŠAK]]-TBL_Summary[[#This Row],[STVARNI TROŠAK]]) ->  | F14: =TBL_Summary[[#This Row],[PROCIJENJENI TROŠAK]]/SUM(TBL_Summary[PROCIJENJENI TROŠAK]) -> 1.7% | J14: Vjenčano prstenje | K14: =TBL_WeddingRings[[#Totals],[PROCIJENJENO]] -> 1100 | L14: =TBL_WeddingRings[[#Totals],[STVARNO]] -> 0 | M14: 1099.91 | N14: 7 | O14: 9 | P14: Tiskanice
B15: Prijevoz | C15: =VLOOKUP(TBL_Summary[[#This Row],[KATEGORIJA]],TBL_RankingData,2,FALSE) -> 450 kn | D15: =IF(VLOOKUP(TBL_Summary[[#This Row],[KATEGORIJA]],TBL_RankingData,3,FALSE)=0,"",VLOOKUP(TBL_Summary[[#This Row],[KATEGORIJA]],TBL_RankingData,3,FALSE)) ->  | E15: =IF(OR(TBL_Summary[[#This Row],[PROCIJENJENI TROŠAK]]="",TBL_Summary[[#This Row],[STVARNI TROŠAK]]=""),"",TBL_Summary[[#This Row],[PROCIJENJENI TROŠAK]]-TBL_Summary[[#This Row],[STVARNI TROŠAK]]) ->  | F15: =TBL_Summary[[#This Row],[PROCIJENJENI TROŠAK]]/SUM(TBL_Summary[PROCIJENJENI TROŠAK]) -> 1.5% | J15: Prijevoz | K15: =TBL_Transportation[[#Totals],[PROCIJENJENO]] -> 450 | L15: =TBL_Transportation[[#Totals],[STVARNO]] -> 0 | M15: 449.9 | N15: 10 | O15: 10 | P15: Prijevoz
B16: Zbroj | C16: =SUBTOTAL(109,TBL_Summary[PROCIJENJENI TROŠAK]) -> 29,750 kn | D16: =SUBTOTAL(109,TBL_Summary[STVARNI TROŠAK]) -> 15,700 kn | E16: =TBL_Summary[[#Totals],[PROCIJENJENI TROŠAK]]-TBL_Summary[[#Totals],[STVARNI TROŠAK]] -> 14,050 kn | F16: =SUBTOTAL(109,TBL_Summary[% PRORAČUNA]) -> 100%

Sheet Pojedinosti proračuna
B2: POJEDINOSTI PRORAČUNA
B4: PRIJEM | C4: PROCIJENJENO | D4: STVARNO | E4: ODSTUPANJE
B5: Mjesto održavanja i iznajmljivanje | C5: 8,000.00 kn | D5: 7,800.00 kn | E5: =IF(OR(TBL_Reception[[#This Row],[PROCIJENJENO]]="",TBL_Reception[[#This Row],[STVARNO]]=""),"",TBL_Reception[[#This Row],[PROCIJENJENO]]-TBL_Reception[[#This Row],[STVARNO]]) -> 200.00 kn
B6: Hrana i usluge | C6: 4,000.00 kn | D6: 4,200.00 kn | E6: =IF(OR(TBL_Reception[[#This Row],[PROCIJENJENO]]="",TBL_Reception[[#This Row],[STVARNO]]=""),"",TBL_Reception[[#This Row],[PROCIJENJENO]]-TBL_Reception[[#This Row],[STVARNO]]) -> -200.00 kn
B7: Pića | C7: 1,000.00 kn | D7: 800.00 kn | E7: =IF(OR(TBL_Reception[[#This Row],[PROCIJENJENO]]="",TBL_Reception[[#This Row],[STVARNO]]=""),"",TBL_Reception[[#This Row],[PROCIJENJENO]]-TBL_Reception[[#This Row],[STVARNO]]) -> 200.00 kn
B8: Torta | C8: 1,000.00 kn | E8: =IF(OR(TBL_Reception[[#This Row],[PROCIJENJENO]]="",TBL_Reception[[#This Row],[STVARNO]]=""),"",TBL_Reception[[#This Row],[PROCIJENJENO]]-TBL_Reception[[#This Row],[STVARNO]]) -> 
B9: Razne naknade | C9: 500.00 kn | E9: =IF(OR(TBL_Reception[[#This Row],[PROCIJENJENO]]="",TBL_Reception[[#This Row],[STVARNO]]=""),"",TBL_Reception[[#This Row],[PROCIJENJENO]]-TBL_Reception[[#This Row],[STVARNO]]) -> 
B10: UKUPNO ZA PRIJEM | C10: =SUBTOTAL(109,TBL_Reception[PROCIJENJENO]) -> 14,500.00 kn | D10: =SUBTOTAL(109,TBL_Reception[STVARNO]) -> 12,800.00 kn | E10: =TBL_Reception[[#Totals],[PROCIJENJENO]]-TBL_Reception[[#Totals],[STVARNO]] -> 1,700.00 kn
B13: ODJEĆA | C13: PROCIJENJENO | D13: STVARNO | E13: ODSTUPANJE
B14: Smoking, odijelo i/ili haljine | C14: 3,000.00 kn | D14: 2,900.00 kn | E14: =IF(OR(TBL_Attire[[#This Row],[PROCIJENJENO]]="",TBL_Attire[[#This Row],[STVARNO]]=""),"",TBL_Attire[[#This Row],[PROCIJENJENO]]-TBL_Attire[[#This Row],[STVARNO]]) -> 100.00 kn
B15: Prepravci | C15: 100.00 kn | E15: =IF(OR(TBL_Attire[[#This Row],[PROCIJENJENO]]="",TBL_Attire[[#This Row],[STVARNO]]=""),"",TBL_Attire[[#This Row],[PROCIJENJENO]]-TBL_Attire[[#This Row],[STVARNO]]) -> 
B16: Ukras za glavu i veo | C16: 200.00 kn | E16: =IF(OR(TBL_Attire[[#This Row],[PROCIJENJENO]]="",TBL_Attire[[#This Row],[STVARNO]]=""),"",TBL_Attire[[#This Row],[PROCIJENJENO]]-TBL_Attire[[#This Row],[STVARNO]]) -> 
B17: Dodaci | C17: 100.00 kn | E17: =IF(OR(TBL_Attire[[#This Row],[PROCIJENJENO]]="",TBL_Attire[[#This Row],[STVARNO]]=""),"",TBL_Attire[[#This Row],[PROCIJENJENO]]-TBL_Attire[[#This Row],[STVARNO]]) -> 
B18: Frizura i šminka | C18: 500.00 kn | E18: =IF(OR(TBL_Attire[[#This Row],[PROCIJENJENO]]="",TBL_Attire[[#This Row],[STVARNO]]=""),"",TBL_Attire[[#This Row],[PROCIJENJENO]]-TBL_Attire[[#This Row],[STVARNO]]) -> 
B19: Razne naknade | C19: 100.00 kn | E19: =IF(OR(TBL_Attire[[#This Row],[PROCIJENJENO]]="",TBL_Attire[[#This Row],[STVARNO]]=""),"",TBL_Attire[[#This Row],[PROCIJENJENO]]-TBL_Attire[[#This Row],[STVARNO]]) -> 
B20: UKUPNO ZA ODJEĆU | C20: =SUBTOTAL(109,TBL_Attire[PROCIJENJENO]) -> 4,000.00 kn | D20: =SUBTOTAL(109,TBL_Attire[STVARNO]) -> 2,900.00 kn | E20: =TBL_Attire[[#Totals],[PROCIJENJENO]]-TBL_Attire[[#Totals],[STVARNO]] -> 1,100.00 kn
B23: CVIJEĆE I UKRASI | C23: PROCIJENJENO | D23: STVARNO | E23: ODSTUPANJE
B24: Cvjetni aranžmani za ceremoniju | C24: 1,000.00 kn | E24: =IF(OR(TBL_FlowersAndDecor[[#This Row],[PROCIJENJENO]]="",TBL_FlowersAndDecor[[#This Row],[STVARNO]]=""),"",TBL_FlowersAndDecor[[#This Row],[PROCIJENJENO]]-TBL_FlowersAndDecor[[#This Row],[STVARNO]]) -> 
B25: Pupoljci i košara djevojčice koja baca cvijeće | C25: 500.00 kn | E25: =IF(OR(TBL_FlowersAndDecor[[#This Row],[PROCIJENJENO]]="",TBL_FlowersAndDecor[[#This Row],[STVARNO]]=""),"",TBL_FlowersAndDecor[[#This Row],[PROCIJENJENO]]-TBL_FlowersAndDecor[[#This Row],[STVARNO]]) -> 
B26: Jastučić za prsten | C26: 100.00 kn | E26: =IF(OR(TBL_FlowersAndDecor[[#This Row],[PROCIJENJENO]]="",TBL_FlowersAndDecor[[#This Row],[STVARNO]]=""),"",TBL_FlowersAndDecor[[#This Row],[PROCIJENJENO]]-TBL_FlowersAndDecor[[#This Row],[STVARNO]]) -> 
B27: Buketi | C27: 500.00 kn | E27: =IF(OR(TBL_FlowersAndDecor[[#This Row],[PROCIJENJENO]]="",TBL_FlowersAndDecor[[#This Row],[STVARNO]]=""),"",TBL_FlowersAndDecor[[#This Row],[PROCIJENJENO]]-TBL_FlowersAndDecor[[#This Row],[STVARNO]]) -> 
B28: Ukrasi za zapučak | C28: 100.00 kn | E28: =IF(OR(TBL_FlowersAndDecor[[#This Row],[PROCIJENJENO]]="",TBL_FlowersAndDecor[[#This Row],[STVARNO]]=""),"",TBL_FlowersAndDecor[[#This Row],[PROCIJENJENO]]-TBL_FlowersAndDecor[[#This Row],[STVARNO]]) -> 
B29: Ukrasi za zapešće | C29: 200.00 kn | E29: =IF(OR(TBL_FlowersAndDecor[[#This Row],[PROCIJENJENO]]="",TBL_FlowersAndDecor[[#This Row],[STVARNO]]=""),"",TBL_FlowersAndDecor[[#This Row],[PROCIJENJENO]]-TBL_FlowersAndDecor[[#This Row],[STVARNO]]) -> 
B30: Dekoracije prijema | C30: 300.00 kn | E30: =IF(OR(TBL_FlowersAndDecor[[#This Row],[PROCIJENJENO]]="",TBL_FlowersAndDecor[[#This Row],[STVARNO]]=""),"",TBL_FlowersAndDecor[[#This Row],[PROCIJENJENO]]-TBL_FlowersAndDecor[[#This Row],[STVARNO]]) -> 
B31: Rasvjeta | C31: 200.00 kn | E31: =IF(OR(TBL_FlowersAndDecor[[#This Row],[PROCIJENJENO]]="",TBL_FlowersAndDecor[[#This Row],[STVARNO]]=""),"",TBL_FlowersAndDecor[[#This Row],[PROCIJENJENO]]-TBL_FlowersAndDecor[[#This Row],[STVARNO]]) -> 
B32: Razne naknade | C32: 100.00 kn | E32: =IF(OR(TBL_FlowersAndDecor[[#This Row],[PROCIJENJENO]]="",TBL_FlowersAndDecor[[#This Row],[STVARNO]]=""),"",TBL_FlowersAndDecor[[#This Row],[PROCIJENJENO]]-TBL_FlowersAndDecor[[#This Row],[STVARNO]]) -> 
B33: UKUPNO ZA CVIJEĆE I UKRASE | C33: =SUBTOTAL(109,TBL_FlowersAndDecor[PROCIJENJENO]) -> 3,000.00 kn | D33: =SUBTOTAL(109,TBL_FlowersAndDecor[STVARNO]) -> 0.00 kn | E33: =TBL_FlowersAndDecor[[#Totals],[PROCIJENJENO]]-TBL_FlowersAndDecor[[#Totals],[STVARNO]] -> 3,000.00 kn
B36: GLAZBA | C36: PROCIJENJENO | D36: STVARNO | E36: ODSTUPANJE
B37: Glazbenici za obred | C37: 700.00 kn | E37: =IF(OR(TBL_Music[[#This Row],[PROCIJENJENO]]="",TBL_Music[[#This Row],[STVARNO]]=""),"",TBL_Music[[#This Row],[PROCIJENJENO]]-TBL_Music[[#This Row],[STVARNO]]) -> 
B38: Glazbenici za koktel zabavu | C38: 300.00 kn | E38: =IF(OR(TBL_Music[[#This Row],[PROCIJENJENO]]="",TBL_Music[[#This Row],[STVARNO]]=""),"",TBL_Music[[#This Row],[PROCIJENJENO]]-TBL_Music[[#This Row],[STVARNO]]) -> 
B39: Bend za prijem, DJ ili zabava | C39: 200.00 kn | E39: =IF(OR(TBL_Music[[#This Row],[PROCIJENJENO]]="",TBL_Music[[#This Row],[STVARNO]]=""),"",TBL_Music[[#This Row],[PROCIJENJENO]]-TBL_Music[[#This Row],[STVARNO]]) -> 
B40: Iznajmljivanje zvučnog sustava ili plesnog podija | C40: 400.00 kn | E40: =IF(OR(TBL_Music[[#This Row],[PROCIJENJENO]]="",TBL_Music[[#This Row],[STVARNO]]=""),"",TBL_Music[[#This Row],[PROCIJENJENO]]-TBL_Music[[#This Row],[STVARNO]]) -> 
B41: Razne naknade | C41: 200.00 kn | E41: =IF(OR(TBL_Music[[#This Row],[PROCIJENJENO]]="",TBL_Music[[#This Row],[STVARNO]]=""),"",TBL_Music[[#This Row],[PROCIJENJENO]]-TBL_Music[[#This Row],[STVARNO]]) -> 
B42: UKUPNO ZA GLAZBU | C42: =SUBTOTAL(109,TBL_Music[PROCIJENJENO]) -> 1,800.00 kn | D42: =SUBTOTAL(109,TBL_Music[STVARNO]) -> 0.00 kn | E42: =TBL_Music[[#Totals],[PROCIJENJENO]]-TBL_Music[[#Totals],[STVARNO]] -> 1,800.00 kn
B45: FOTOGRAFIJE I VIDEOZAPISI | C45: PROCIJENJENO | D45: STVARNO | E45: ODSTUPANJE
B46: Fotografija | C46: 1,000.00 kn | E46: =IF(OR(TBL_PhotographsAndVideo[[#This Row],[PROCIJENJENO]]="",TBL_PhotographsAndVideo[[#This Row],[STVARNO]]=""),"",TBL_PhotographsAndVideo[[#This Row],[PROCIJENJENO]]-TBL_PhotographsAndVideo[[#This Row],[STVARNO]]) -> 
B47: Videosnimke | C47: 800.00 kn | E47: =IF(OR(TBL_PhotographsAndVideo[[#This Row],[PROCIJENJENO]]="",TBL_PhotographsAndVideo[[#This Row],[STVARNO]]=""),"",TBL_PhotographsAndVideo[[#This Row],[PROCIJENJENO]]-TBL_PhotographsAndVideo[[#This Row],[STVARNO]]) -> 
B48: Dodatni ispisi i albumi | C48: 500.00 kn | E48: =IF(OR(TBL_PhotographsAndVideo[[#This Row],[PROCIJENJENO]]="",TBL_PhotographsAndVideo[[#This Row],[STVARNO]]=""),"",TBL_PhotographsAndVideo[[#This Row],[PROCIJENJENO]]-TBL_PhotographsAndVideo[[#This Row],[STVARNO]]) -> 
B49: Razne naknade | C49: 200.00 kn | E49: =IF(OR(TBL_PhotographsAndVideo[[#This Row],[PROCIJENJENO]]="",TBL_PhotographsAndVideo[[#This Row],[STVARNO]]=""),"",TBL_PhotographsAndVideo[[#This Row],[PROCIJENJENO]]-TBL_PhotographsAndVideo[[#This Row],[STVARNO]]) -> 
B50: UKUPNO ZA FOTOGRAFIJE I VIDEOZAPISE | C50: =SUBTOTAL(109,TBL_PhotographsAndVideo[PROCIJENJENO]) -> 2,500.00 kn | D50: =SUBTOTAL(109,TBL_PhotographsAndVideo[STVARNO]) -> 0.00 kn | E50: =TBL_PhotographsAndVideo[[#Totals],[PROCIJENJENO]]-TBL_PhotographsAndVideo[[#Totals],[STVARNO]] -> 2,500.00 kn
B53: USLUGE I DAROVI | C53: PROCIJENJENO | D53: STVARNO | E53: ODSTUPANJE
B54: Darovi dobrodošlice | C54: 700.00 kn | E54: =IF(OR(TBL_FavorsAndGifts[[#This Row],[PROCIJENJENO]]="",TBL_FavorsAndGifts[[#This Row],[STVARNO]]=""),"",TBL_FavorsAndGifts[[#This Row],[PROCIJENJENO]]-TBL_FavorsAndGifts[[#This Row],[STVARNO]]) -> 
B55: Pokloni za zabavu | C55: 200.00 kn | E55: =IF(OR(TBL_FavorsAndGifts[[#This Row],[PROCIJENJENO]]="",TBL_FavorsAndGifts[[#This Row],[STVARNO]]=""),"",TBL_FavorsAndGifts[[#This Row],[PROCIJENJENO]]-TBL_FavorsAndGifts[[#This Row],[STVARNO]]) -> 
B56: Razne naknade | C56: 200.00 kn | E56: =IF(OR(TBL_FavorsAndGifts[[#This Row],[PROCIJENJENO]]="",TBL_FavorsAndGifts[[#This Row],[STVARNO]]=""),"",TBL_FavorsAndGifts[[#This Row],[PROCIJENJENO]]-TBL_FavorsAndGifts[[#This Row],[STVARNO]]) -> 
B57: UKUPNO ZA USLUGE I DAROVE | C57: =SUBTOTAL(109,TBL_FavorsAndGifts[PROCIJENJENO]) -> 1,100.00 kn | D57: =SUBTOTAL(109,TBL_FavorsAndGifts[STVARNO]) -> 0.00 kn | E57: =TBL_FavorsAndGifts[[#Totals],[PROCIJENJENO]]-TBL_FavorsAndGifts[[#Totals],[STVARNO]] -> 1,100.00 kn
B60: OBRED | C60: PROCIJENJENO | D60: STVARNO | E60: ODSTUPANJE
B61: Naknada za dvoranu | C61: 500.00 kn | E61: =IF(OR(TBL_Ceremony[[#This Row],[PROCIJENJENO]]="",TBL_Ceremony[[#This Row],[STVARNO]]=""),"",TBL_Ceremony[[#This Row],[PROCIJENJENO]]-TBL_Ceremony[[#This Row],[STVARNO]]) -> 
B62: Naknada za matičara ili donacija crkvi | C62: 200.00 kn | E62: =IF(OR(TBL_Ceremony[[#This Row],[PROCIJENJENO]]="",TBL_Ceremony[[#This Row],[STVARNO]]=""),"",TBL_Ceremony[[#This Row],[PROCIJENJENO]]-TBL_Ceremony[[#This Row],[STVARNO]]) -> 
B63: Razne naknade | C63: 100.00 kn | E63: =IF(OR(TBL_Ceremony[[#This Row],[PROCIJENJENO]]="",TBL_Ceremony[[#This Row],[STVARNO]]=""),"",TBL_Ceremony[[#This Row],[PROCIJENJENO]]-TBL_Ceremony[[#This Row],[STVARNO]]) -> 
B64: UKUPNO ZA OBRED | C64: =SUBTOTAL(109,TBL_Ceremony[PROCIJENJENO]) -> 800.00 kn | D64: =SUBTOTAL(109,TBL_Ceremony[STVARNO]) -> 0.00 kn | E64: =TBL_Ceremony[[#Totals],[PROCIJENJENO]]-TBL_Ceremony[[#Totals],[STVARNO]] -> 800.00 kn
B67: TISKANICE | C67: PROCIJENJENO | D67: STVARNO | E67: ODSTUPANJE
B68: Posjetnice za vjenčanje | C68: 50.00 kn | E68: =IF(OR(TBL_Stationery[[#This Row],[PROCIJENJENO]]="",TBL_Stationery[[#This Row],[STVARNO]]=""),"",TBL_Stationery[[#This Row],[PROCIJENJENO]]-TBL_Stationery[[#This Row],[STVARNO]]) -> 
B69: Pozivnice i odgovori na pozivnice | C69: 100.00 kn | E69: =IF(OR(TBL_Stationery[[#This Row],[PROCIJENJENO]]="",TBL_Stationery[[#This Row],[STVARNO]]=""),"",TBL_Stationery[[#This Row],[PROCIJENJENO]]-TBL_Stationery[[#This Row],[STVARNO]]) -> 
B70: Programi | C70: 50.00 kn | E70: =IF(OR(TBL_Stationery[[#This Row],[PROCIJENJENO]]="",TBL_Stationery[[#This Row],[STVARNO]]=""),"",TBL_Stationery[[#This Row],[PROCIJENJENO]]-TBL_Stationery[[#This Row],[STVARNO]]) -> 
B71: Kartice s rasporedom sjedenja | C71: 50.00 kn | E71: =IF(OR(TBL_Stationery[[#This Row],[PROCIJENJENO]]="",TBL_Stationery[[#This Row],[STVARNO]]=""),"",TBL_Stationery[[#This Row],[PROCIJENJENO]]-TBL_Stationery[[#This Row],[STVARNO]]) -> 
B72: Jelovnici | C72: 50.00 kn | E72: =IF(OR(TBL_Stationery[[#This Row],[PROCIJENJENO]]="",TBL_Stationery[[#This Row],[STVARNO]]=""),"",TBL_Stationery[[#This Row],[PROCIJENJENO]]-TBL_Stationery[[#This Row],[STVARNO]]) -> 
B73: Zahvalnice | C73: 50.00 kn | E73: =IF(OR(TBL_Stationery[[#This Row],[PROCIJENJENO]]="",TBL_Stationery[[#This Row],[STVARNO]]=""),"",TBL_Stationery[[#This Row],[PROCIJENJENO]]-TBL_Stationery[[#This Row],[STVARNO]]) -> 
B74: Poštarina | C74: 50.00 kn | E74: =IF(OR(TBL_Stationery[[#This Row],[PROCIJENJENO]]="",TBL_Stationery[[#This Row],[STVARNO]]=""),"",TBL_Stationery[[#This Row],[PROCIJENJENO]]-TBL_Stationery[[#This Row],[STVARNO]]) -> 
B75: Razne naknade | C75: 100.00 kn | E75: =IF(OR(TBL_Stationery[[#This Row],[PROCIJENJENO]]="",TBL_Stationery[[#This Row],[STVARNO]]=""),"",TBL_Stationery[[#This Row],[PROCIJENJENO]]-TBL_Stationery[[#This Row],[STVARNO]]) -> 
B76: UKUPNO ZA TISKANICE | C76: =SUBTOTAL(109,TBL_Stationery[PROCIJENJENO]) -> 500.00 kn | D76: =SUBTOTAL(109,TBL_Stationery[STVARNO]) -> 0.00 kn | E76: =TBL_Stationery[[#Totals],[PROCIJENJENO]]-TBL_Stationery[[#Totals],[STVARNO]] -> 500.00 kn
B79: VJENČANO PRSTENJE | C79: PROCIJENJENO | D79: STVARNO | E79: ODSTUPANJE
B80: Vjenčano prstenje | C80: 1,000.00 kn | E80: =IF(OR(TBL_WeddingRings[[#This Row],[PROCIJENJENO]]="",TBL_WeddingRings[[#This Row],[STVARNO]]=""),"",TBL_WeddingRings[[#This Row],[PROCIJENJENO]]-TBL_WeddingRings[[#This Row],[STVARNO]]) -> 
B81: Dodaci za prstenje | C81: 100.00 kn | E81: =IF(OR(TBL_WeddingRings[[#This Row],[PROCIJENJENO]]="",TBL_WeddingRings[[#This Row],[STVARNO]]=""),"",TBL_WeddingRings[[#This Row],[PROCIJENJENO]]-TBL_WeddingRings[[#This Row],[STVARNO]]) -> 
B82: UKUPNO ZA VJENČANO PRSTENJE | C82: =SUBTOTAL(109,TBL_WeddingRings[PROCIJENJENO]) -> 1,100.00 kn | D82: =SUBTOTAL(109,TBL_WeddingRings[STVARNO]) -> 0.00 kn | E82: =TBL_WeddingRings[[#Totals],[PROCIJENJENO]]-TBL_WeddingRings[[#Totals],[STVARNO]] -> 1,100.00 kn
B85: PRIJEVOZ | C85: PROCIJENJENO | D85: STVARNO | E85: ODSTUPANJE
B86: Najam glavnog automobila | C86: 100.00 kn | E86: =IF(OR(TBL_Transportation[[#This Row],[PROCIJENJENO]]="",TBL_Transportation[[#This Row],[STVARNO]]=""),"",TBL_Transportation[[#This Row],[PROCIJENJENO]]-TBL_Transportation[[#This Row],[STVARNO]]) -> 
B87: Najam automobila za goste | C87: 100.00 kn | E87: =IF(OR(TBL_Transportation[[#This Row],[PROCIJENJENO]]="",TBL_Transportation[[#This Row],[STVARNO]]=""),"",TBL_Transportation[[#This Row],[PROCIJENJENO]]-TBL_Transportation[[#This Row],[STVARNO]]) -> 
B88: Prijevoz za goste izvan grada | C88: 100.00 kn | E88: =IF(OR(TBL_Transportation[[#This Row],[PROCIJENJENO]]="",TBL_Transportation[[#This Row],[STVARNO]]=""),"",TBL_Transportation[[#This Row],[PROCIJENJENO]]-TBL_Transportation[[#This Row],[STVARNO]]) -> 
B89: Usluga parkiranja | C89: 50.00 kn | E89: =IF(OR(TBL_Transportation[[#This Row],[PROCIJENJENO]]="",TBL_Transportation[[#This Row],[STVARNO]]=""),"",TBL_Transportation[[#This Row],[PROCIJENJENO]]-TBL_Transportation[[#This Row],[STVARNO]]) -> 
B90: Razne naknade | C90: 100.00 kn | E90: =IF(OR(TBL_Transportation[[#This Row],[PROCIJENJENO]]="",TBL_Transportation[[#This Row],[STVARNO]]=""),"",TBL_Transportation[[#This Row],[PROCIJENJENO]]-TBL_Transportation[[#This Row],[STVARNO]]) -> 
B91: UKUPNO ZA PRIJEVOZ | C91: =SUBTOTAL(109,TBL_Transportation[PROCIJENJENO]) -> 450.00 kn | D91: =SUBTOTAL(109,TBL_Transportation[STVARNO]) -> 0.00 kn | E91: =TBL_Transportation[[#Totals],[PROCIJENJENO]]-TBL_Transportation[[#Totals],[STVARNO]] -> 450.00 kn
